fUSD/lending_fUSD_20260610
["ID","MTS","AMOUNT","RATE_DAILY","PERIOD"]
[424671877,1781039448000,-500.0,0.00015,2]
[424671876,1781039448000,-500.0,0.00015,2]
[424671893,1781039448000,-500.0,0.00015,2]
[424671882,1781039448000,-500.0,0.00015,2]
[424671891,1781039448000,-500.0,0.00015,2]
[424671904,1781039448000,-500.0,0.00015,2]
[424671886,1781039448000,-500.0,0.00015,2]
[424671889,1781039448000,-500.0,0.00015,2]
[424671883,1781039448000,-500.0,0.00015,2]
[424671895,1781039448000,-500.0,0.00015,2]
[424671905,1781039448000,-500.0,0.00015,2]
[424671894,1781039448000,-500.0,0.00015,2]
[424671896,1781039448000,-500.0,0.00015,2]
[424671897,1781039448000,-500.0,0.00015,2]
[424671899,1781039448000,-500.0,0.00015,2]
[424671898,1781039448000,-500.0,0.00015,2]
[424671903,1781039448000,-500.0,0.00015,2]
[424671901,1781039448000,-500.0,0.00015,2]
[424671873,1781039448000,-500.0,0.00015,2]
[424671881,1781039448000,-500.0,0.00015,2]
[424671872,1781039448000,-500.0,0.00015,2]
[424671850,1781039448000,-2000.0,0.00015,2]
[424671879,1781039448000,-5257.394979,0.00015,2]
[424671902,1781039448000,-500.0,0.00015,2]
[424671852,1781039448000,-1827.94,0.00015,2]
[424671853,1781039448000,-151.0,0.00015,2]
[424671844,1781039448000,-2000.0,0.00015,2]
[424671848,1781039448000,-2000.0,0.00015,2]
[424671849,1781039448000,-1311.74,0.00015,2]
[424671845,1781039448000,-1051.96,0.00015,2]
[424671847,1781039448000,-2000.0,0.00015,2]
[424671851,1781039448000,-1046.56,0.00015,2]
[424671846,1781039448000,-2000.0,0.00015,2]
[424671856,1781039448000,-151.0,0.00015,2]
[424671855,1781039448000,-151.0,0.00015,2]
[424671854,1781039448000,-151.0,0.00015,2]
[424671870,1781039448000,-500.0,0.00015,2]
[424671867,1781039448000,-151.0,0.00015,2]
[424671865,1781039448000,-151.0,0.00015,2]
[424671858,1781039448000,-151.0,0.00015,2]
[424671866,1781039448000,-151.0,0.00015,2]
[424671859,1781039448000,-151.0,0.00015,2]
[424671860,1781039448000,-151.0,0.00015,2]
[424671861,1781039448000,-151.0,0.00015,2]
[424671862,1781039448000,-151.0,0.00015,2]
[424671863,1781039448000,-151.0,0.00015,2]
[424671864,1781039448000,-151.0,0.00015,2]
[424671869,1781039448000,-500.0,0.00015,2]
[424671880,1781039448000,-500.0,0.00015,2]
[424671868,1781039448000,-151.0,0.00015,2]
[424671871,1781039448000,-500.0,0.00015,2]
[424671857,1781039448000,-151.0,0.00015,2]
[424671900,1781039448000,-500.0,0.00015,2]
[424671963,1781039448000,-666.0,0.00015067,2]
[424671908,1781039448000,-500.0,0.00015,2]
[424671935,1781039448000,-500.0,0.00015,2]
[424671940,1781039448000,-500.0,0.00015,2]
[424671938,1781039448000,-500.0,0.00015,2]
[424671955,1781039448000,-151.0,0.00015,2]
[424671945,1781039448000,-500.0,0.00015,2]
[424671956,1781039448000,-151.0,0.00015,2]
[424671952,1781039448000,-489.961075,0.00015,2]
[424671951,1781039448000,-489.961075,0.00015,2]
[424671949,1781039448000,-332.02896,0.00015,2]
[424671947,1781039448000,-500.0,0.00015,2]
[424671944,1781039448000,-500.0,0.00015,2]
[424671946,1781039448000,-500.0,0.00015,2]
[424671953,1781039448000,-489.961075,0.00015,2]
[424671943,1781039448000,-151.0,0.00015,2]
[424671948,1781039448000,-500.0,0.00015,2]
[424671954,1781039448000,-151.0,0.00015,2]
[424671959,1781039448000,-151.0,0.00015,2]
[424671957,1781039448000,-151.0,0.00015,2]
[424671960,1781039448000,-300.0,0.00015066,2]
[424671958,1781039448000,-151.0,0.00015,2]
[424671965,1781039448000,-488.41,0.00015068,2]
[424671964,1781039448000,-300.0,0.00015067,2]
[424671967,1781039448000,-524.095183,0.00015068,2]
[424671966,1781039448000,-524.095183,0.00015068,2]
[424671906,1781039448000,-500.0,0.00015,2]
[424671962,1781039448000,-300.0,0.00015067,2]
[424671969,1781039448000,-524.095183,0.00015068,2]
[424671968,1781039448000,-524.095183,0.00015068,2]
[424671950,1781039448000,-489.961075,0.00015,2]
[424671941,1781039448000,-500.0,0.00015,2]
[424671961,1781039448000,-300.0,0.00015067,2]
[424671942,1781039448000,-500.0,0.00015,2]
[424671939,1781039448000,-500.0,0.00015,2]
[424671910,1781039448000,-500.0,0.00015,2]
[424671912,1781039448000,-500.0,0.00015,2]
[424671911,1781039448000,-500.0,0.00015,2]
[424671916,1781039448000,-500.0,0.00015,2]
[424671917,1781039448000,-500.0,0.00015,2]
[424671913,1781039448000,-500.0,0.00015,2]
[424671914,1781039448000,-500.0,0.00015,2]
[424671915,1781039448000,-500.0,0.00015,2]
[424671907,1781039448000,-500.0,0.00015,2]
[424671918,1781039448000,-500.0,0.00015,2]
[424671919,1781039448000,-500.0,0.00015,2]
[424671929,1781039448000,-500.0,0.00015,2]
[424671921,1781039448000,-500.0,0.00015,2]
[424671909,1781039448000,-500.0,0.00015,2]
[424671923,1781039448000,-500.0,0.00015,2]
[424671927,1781039448000,-500.0,0.00015,2]
[424671933,1781039448000,-500.0,0.00015,2]
[424671936,1781039448000,-500.0,0.00015,2]
[424671931,1781039448000,-500.0,0.00015,2]
[424671932,1781039448000,-500.0,0.00015,2]
[424671924,1781039448000,-500.0,0.00015,2]
[424671937,1781039448000,-500.0,0.00015,2]
[424671920,1781039448000,-500.0,0.00015,2]
[424671925,1781039448000,-500.0,0.00015,2]
[424671930,1781039448000,-500.0,0.00015,2]
[424671934,1781039448000,-500.0,0.00015,2]
[424671926,1781039448000,-500.0,0.00015,2]
[424671928,1781039448000,-500.0,0.00015,2]
[424671922,1781039448000,-500.0,0.00015,2]
[424671998,1781039449000,-152.0,0.00015211,2]
[424672011,1781039449000,-900.0,0.00015237,2]
[424672001,1781039449000,-151.0,0.00015211,2]
[424672000,1781039449000,-151.0,0.00015211,2]
[424672002,1781039449000,-151.0,0.00015211,2]
[424672005,1781039449000,-151.0,0.00015211,2]
[424672004,1781039449000,-156.7527199,0.00015211,2]
[424672010,1781039449000,-900.0,0.00015237,2]
[424672006,1781039449000,-151.0,0.00015211,2]
[424672009,1781039449000,-900.0,0.00015237,2]
[424672013,1781039449000,-900.0,0.00015237,2]
[424672003,1781039449000,-151.0,0.00015211,2]
[424672020,1781039449000,-168.3,0.00015592,2]
[424672008,1781039449000,-300.0,0.00015236,2]
[424672012,1781039449000,-900.0,0.00015237,2]
[424672015,1781039449000,-900.0,0.00015237,2]
[424672014,1781039449000,-900.0,0.00015237,2]
[424672016,1781039449000,-900.0,0.00015237,2]
[424672021,1781039449000,-287.4657968,0.00015719,2]
[424672022,1781039449000,-300.0,0.00015731,2]
[424672017,1781039449000,-900.0,0.00015237,2]
[424672019,1781039449000,-332.37637789,0.0001525,2]
[424672018,1781039449000,-454.0,0.00015237,2]
[424671999,1781039449000,-164.81794585,0.00015211,2]
[424672007,1781039449000,-172.17979501,0.00015211,2]
[424671997,1781039449000,-152.0,0.00015211,2]
[424671981,1781039449000,-300.0,0.00015189,2]
[424671995,1781039449000,-152.0,0.00015211,2]
[424672024,1781039449000,-300.0,0.00015799,2]
[424671979,1781039449000,-300.0,0.00015189,2]
[424671980,1781039449000,-300.0,0.00015189,2]
[424671971,1781039449000,-300.0,0.00015183,2]
[424671970,1781039449000,-300.0,0.00015182,2]
[424671976,1781039449000,-300.0,0.00015188,2]
[424671974,1781039449000,-1672.7364795,0.00015184,2]
[424671972,1781039449000,-666.0,0.00015183,2]
[424671977,1781039449000,-666.0,0.00015188,2]
[424671973,1781039449000,-300.0,0.00015183,2]
[424671975,1781039449000,-300.0,0.00015187,2]
[424671978,1781039449000,-300.0,0.00015189,2]
[424671986,1781039449000,-300.0,0.00015189,2]
[424671982,1781039449000,-300.0,0.00015189,2]
[424671987,1781039449000,-151.0,0.00015189,2]
[424671989,1781039449000,-150.0,0.00015204,2]
[424671984,1781039449000,-300.0,0.00015189,2]
[424671990,1781039449000,-150.0,0.00015204,2]
[424671991,1781039449000,-243.0,0.00015204,2]
[424671985,1781039449000,-300.0,0.00015189,2]
[424671983,1781039449000,-300.0,0.00015189,2]
[424671988,1781039449000,-288.0,0.00015204,2]
[424671993,1781039449000,-666.0,0.0001521,2]
[424671992,1781039449000,-300.0,0.0001521,2]
[424671996,1781039449000,-152.0,0.00015211,2]
[424671994,1781039449000,-282.19036087,0.00015211,2]
[424672023,1781039449000,-1734.62772924,0.00015732,2]
[424672060,1781039449000,-151.0,0.00016438,2]
[424672026,1781039449000,-1031.98,0.000158,2]
[424672078,1781039449000,-774.886158,0.00016438,2]
[424672052,1781039449000,-151.0,0.00016438,2]
[424672056,1781039449000,-151.0,0.00016438,2]
[424672061,1781039449000,-151.0,0.00016438,2]
[424672058,1781039449000,-151.0,0.00016438,2]
[424672059,1781039449000,-151.0,0.00016438,2]
[424672063,1781039449000,-151.0,0.00016438,2]
[424672067,1781039449000,-151.0,0.00016438,2]
[424672066,1781039449000,-151.0,0.00016438,2]
[424672070,1781039449000,-152.0,0.00016438,2]
[424672064,1781039449000,-151.0,0.00016438,2]
[424672068,1781039449000,-152.0,0.00016438,2]
[424672065,1781039449000,-151.0,0.00016438,2]
[424672062,1781039449000,-151.0,0.00016438,2]
[424672069,1781039449000,-152.0,0.00016438,2]
[424672071,1781039449000,-216.0,0.00016438,2]
[424672073,1781039449000,-2416.224079,0.00016438,2]
[424672072,1781039449000,-2416.224079,0.00016438,2]
[424672081,1781039449000,-168.3,0.00016566,2]
[424672076,1781039449000,-774.886158,0.00016438,2]
[424672077,1781039449000,-774.886158,0.00016438,2]
[424672079,1781039449000,-774.886158,0.00016438,2]
[424672074,1781039449000,-2416.224079,0.00016438,2]
[424672080,1781039449000,-10000.0,0.00016442,2]
[424672075,1781039449000,-2416.224079,0.00016438,2]
[424672055,1781039449000,-151.0,0.00016438,2]
[424672054,1781039449000,-151.0,0.00016438,2]
[424672025,1781039449000,-419.50355664,0.000158,5]
[424672057,1781039449000,-151.0,0.00016438,2]
[424672027,1781039449000,-300.0,0.00015852,2]
[424672028,1781039449000,-10000.0,0.00015853,2]
[424672035,1781039449000,-4742.13276752,0.00016204,2]
[424672032,1781039449000,-300.0,0.00016115,2]
[424672029,1781039449000,-500.0,0.00015863,2]
[424672036,1781039449000,-10000.0,0.0001626,2]
[424672031,1781039449000,-215.89329178,0.00016,3]
[424672053,1781039449000,-151.0,0.00016438,2]
[424672030,1781039449000,-300.0,0.00016,2]
[424672033,1781039449000,-8281.88,0.00016116,2]
[424672048,1781039449000,-151.0,0.00016438,2]
[424672038,1781039449000,-4742.13276752,0.00016373,2]
[424672034,1781039449000,-300.0,0.00016203,2]
[424672046,1781039449000,-151.0,0.00016438,2]
[424672037,1781039449000,-1798.80895522,0.0001628,2]
[424672049,1781039449000,-151.0,0.00016438,2]
[424672050,1781039449000,-151.0,0.00016438,2]
[424672042,1781039449000,-488.41,0.00016438,2]
[424672041,1781039449000,-9438.67789649,0.00016422,2]
[424672051,1781039449000,-151.0,0.00016438,2]
[424672045,1781039449000,-151.0,0.00016438,2]
[424672044,1781039449000,-151.0,0.00016438,2]
[424672043,1781039449000,-151.0,0.00016438,2]
[424672039,1781039449000,-4899.97874023,0.000164,2]
[424672047,1781039449000,-151.0,0.00016438,2]
[424672040,1781039449000,-853.94608,0.000164,2]
[424672125,1781039450000,-1854.8132546,0.000182,2]
[424672127,1781039450000,-9711.99420486,0.000184,2]
[424672120,1781039450000,-4899.97874023,0.00018,2]
[424672118,1781039450000,-249.0,0.0001795,2]
[424672110,1781039450000,-169.71,0.00017493,2]
[424672126,1781039450000,-3554.4396299,0.000182,2]
[424672107,1781039450000,-4899.97874023,0.000174,2]
[424672114,1781039450000,-4899.97874023,0.000178,2]
[424672111,1781039450000,-168.3,0.00017541,2]
[424672119,1781039450000,-9711.99420486,0.00018,2]
[424672117,1781039450000,-2005.9555727,0.00017924,2]
[424672137,1781039450000,-151.0,0.00018472,2]
[424672116,1781039450000,-750.0,0.00017908,7]
[424672124,1781039450000,-9711.99420486,0.000182,2]
[424672121,1781039450000,-1854.8132546,0.00018,2]
[424672123,1781039450000,-350.0,0.00018,2]
[424672129,1781039450000,-3554.4396299,0.000184,2]
[424672128,1781039450000,-1854.8132546,0.000184,2]
[424672130,1781039450000,-1599.6,0.0001841,2]
[424672133,1781039450000,-151.0,0.00018472,2]
[424672132,1781039450000,-151.0,0.00018472,2]
[424672135,1781039450000,-200.0,0.00018472,2]
[424672136,1781039450000,-151.0,0.00018472,2]
[424672106,1781039450000,-1934.38338736,0.00017376,2]
[424672122,1781039450000,-3554.4396299,0.00018,2]
[424672104,1781039450000,-318.54558428,0.00017198,2]
[424672096,1781039450000,-152.0,0.00017039,2]
[424672113,1781039450000,-1031.98,0.000176,2]
[424672134,1781039450000,-151.0,0.00018472,2]
[424672082,1781039450000,-4899.97874023,0.000166,2]
[424672083,1781039450000,-853.94608,0.000166,2]
[424672089,1781039450000,-4899.97874023,0.000169,2]
[424672084,1781039450000,-4899.97874023,0.000167,2]
[424672087,1781039450000,-443.9,0.00016767,2]
[424672085,1781039450000,-853.94608,0.000167,2]
[424672088,1781039450000,-1865.36488656,0.00016828,2]
[424672090,1781039450000,-853.94608,0.000169,2]
[424672086,1781039450000,-168.37,0.00016712,2]
[424672092,1781039450000,-2000.0,0.00016961,2]
[424672095,1781039450000,-152.0,0.00017039,2]
[424672097,1781039450000,-151.0,0.00017039,2]
[424672094,1781039450000,-152.0,0.00017039,2]
[424672098,1781039450000,-151.0,0.00017039,2]
[424672103,1781039450000,-853.94608,0.000171,2]
[424672102,1781039450000,-4899.97874023,0.000171,2]
[424672100,1781039450000,-151.0,0.00017039,2]
[424672101,1781039450000,-151.0,0.00017039,2]
[424672093,1781039450000,-500.0,0.00016961,2]
[424672099,1781039450000,-151.0,0.00017039,2]
[424672105,1781039450000,-4899.97874023,0.000173,2]
[424672115,1781039450000,-1800.0,0.00017908,2]
[424672109,1781039450000,-169.71,0.00017493,2]
[424672112,1781039450000,-4899.97874023,0.000176,2]
[424672108,1781039450000,-169.71,0.00017493,2]
[424672131,1781039450000,-151.0,0.00018472,2]
[424672091,1781039450000,-150.05385822,0.00016906,3]
[424672138,1781039450000,-151.0,0.00018472,2]
[424672166,1781039450000,-151.0,0.00018472,2]
[424672167,1781039450000,-151.0,0.00018472,2]
[424672171,1781039450000,-500.0,0.00018472,2]
[424672170,1781039450000,-151.0,0.00018472,2]
[424672172,1781039450000,-151.0,0.00018472,2]
[424672174,1781039450000,-151.0,0.00018472,2]
[424672176,1781039450000,-300.0,0.00018477,2]
[424672177,1781039450000,-300.0,0.00018477,2]
[424672178,1781039450000,-300.0,0.00018477,2]
[424672179,1781039450000,-300.0,0.00018477,2]
[424672183,1781039450000,-1854.8132546,0.000185,2]
[424672169,1781039450000,-151.0,0.00018472,2]
[424672175,1781039450000,-156.15119,0.00018475,2]
[424672180,1781039450000,-697.11885021,0.00018477,2]
[424672181,1781039450000,-300.0,0.00018477,2]
[424672189,1781039450000,-1255.79,0.0001872,2]
[424672193,1781039450000,-9711.99420486,0.000189,2]
[424672185,1781039450000,-9711.99420486,0.000187,2]
[424672186,1781039450000,-1854.8132546,0.000187,2]
[424672184,1781039450000,-3554.4396299,0.000185,2]
[424672188,1781039450000,-20508.29,0.0001872,2]
[424672187,1781039450000,-3554.4396299,0.000187,2]
[424672191,1781039450000,-200.0,0.00018864,2]
[424672190,1781039450000,-1864.76,0.0001872,2]
[424672182,1781039450000,-9711.99420486,0.000185,2]
[424672168,1781039450000,-500.0,0.00018472,2]
[424672192,1781039450000,-151.0,0.00018897,2]
[424672164,1781039450000,-151.0,0.00018472,2]
[424672165,1781039450000,-500.0,0.00018472,2]
[424672149,1781039450000,-151.0,0.00018472,2]
[424672142,1781039450000,-151.0,0.00018472,2]
[424672143,1781039450000,-2080.17592889,0.00018472,2]
[424672140,1781039450000,-151.0,0.00018472,2]
[424672147,1781039450000,-151.0,0.00018472,2]
[424672145,1781039450000,-151.0,0.00018472,2]
[424672141,1781039450000,-151.0,0.00018472,2]
[424672146,1781039450000,-500.0,0.00018472,2]
[424672144,1781039450000,-151.0,0.00018472,2]
[424672148,1781039450000,-500.0,0.00018472,2]
[424672151,1781039450000,-500.0,0.00018472,2]
[424672156,1781039450000,-500.0,0.00018472,2]
[424672139,1781039450000,-151.0,0.00018472,2]
[424672150,1781039450000,-151.0,0.00018472,2]
[424672161,1781039450000,-151.0,0.00018472,2]
[424672163,1781039450000,-151.0,0.00018472,2]
[424672153,1781039450000,-500.0,0.00018472,2]
[424672159,1781039450000,-500.0,0.00018472,2]
[424672152,1781039450000,-151.0,0.00018472,2]
[424672173,1781039450000,-500.0,0.00018472,2]
[424672155,1781039450000,-151.0,0.00018472,2]
[424672157,1781039450000,-151.0,0.00018472,2]
[424672160,1781039450000,-151.0,0.00018472,2]
[424672154,1781039450000,-151.0,0.00018472,2]
[424672158,1781039450000,-151.0,0.00018472,2]
[424672162,1781039450000,-500.0,0.00018472,2]
[424672222,1781039451000,-186.921122,0.00019178,2]
[424672230,1781039451000,-1854.8132546,0.000195,2]
[424672217,1781039451000,-186.921122,0.00019178,2]
[424672221,1781039451000,-186.921122,0.00019178,2]
[424672223,1781039451000,-186.0,0.00019229,2]
[424672226,1781039451000,-3554.4396299,0.000193,2]
[424672228,1781039451000,-10899.0,0.00019474,5]
[424672233,1781039451000,-2236.95670847,0.00019568,2]
[424672232,1781039451000,-1031.98,0.000195,2]
[424672227,1781039451000,-500.0,0.00019382,2]
[424672238,1781039451000,-152.45,0.00019726,2]
[424672235,1781039451000,-9711.99420486,0.000197,2]
[424672231,1781039451000,-3554.4396299,0.000195,2]
[424672234,1781039451000,-250.0,0.000196,7]
[424672236,1781039451000,-1854.8132546,0.000197,2]
[424672219,1781039451000,-186.921122,0.00019178,2]
[424672237,1781039451000,-3554.4396299,0.000197,2]
[424672241,1781039451000,-1146.72507585,0.000199,3]
[424672239,1781039451000,-2000.0,0.00019766,2]
[424672240,1781039451000,-2000.0,0.00019857,7]
[424672244,1781039451000,-232.82938967,0.00019999,2]
[424672242,1781039451000,-500.0,0.00019964,2]
[424672247,1781039451000,-500.0,0.00019999,2]
[424672229,1781039451000,-9711.99420486,0.000195,2]
[424672224,1781039451000,-9711.99420486,0.000193,2]
[424672212,1781039451000,-428.871314,0.00019178,2]
[424672218,1781039451000,-186.921122,0.00019178,2]
[424672245,1781039451000,-500.0,0.00019999,2]
[424672196,1781039451000,-4190.0,0.00019,2]
[424672198,1781039451000,-7029.88368986,0.00019,2]
[424672194,1781039451000,-1854.8132546,0.000189,2]
[424672204,1781039451000,-223.960333,0.00019178,2]
[424672197,1781039451000,-241.53502737,0.00019,2]
[424672203,1781039451000,-223.960333,0.00019178,2]
[424672195,1781039451000,-3554.4396299,0.000189,2]
[424672199,1781039451000,-2157.14243826,0.0001902,2]
[424672200,1781039451000,-9711.99420486,0.000191,2]
[424672202,1781039451000,-3554.4396299,0.000191,2]
[424672205,1781039451000,-223.960333,0.00019178,2]
[424672201,1781039451000,-1854.8132546,0.000191,2]
[424672208,1781039451000,-428.871314,0.00019178,2]
[424672209,1781039451000,-428.871314,0.00019178,2]
[424672207,1781039451000,-428.871314,0.00019178,2]
[424672213,1781039451000,-428.871314,0.00019178,2]
[424672210,1781039451000,-428.871314,0.00019178,2]
[424672214,1781039451000,-428.871314,0.00019178,2]
[424672211,1781039451000,-428.871314,0.00019178,2]
[424672215,1781039451000,-186.921122,0.00019178,2]
[424672216,1781039451000,-186.921122,0.00019178,2]
[424672225,1781039451000,-1854.8132546,0.000193,2]
[424672220,1781039451000,-186.921122,0.00019178,2]
[424672206,1781039451000,-223.960333,0.00019178,2]
[424672246,1781039451000,-500.0,0.00019999,2]
[424672250,1781039451000,-500.0,0.00019999,2]
[424672280,1781039451000,-1367.9253119,0.00019999,2]
[424672278,1781039451000,-1367.9253119,0.00019999,2]
[424672279,1781039451000,-1367.9253119,0.00019999,2]
[424672282,1781039451000,-1367.9253119,0.00019999,2]
[424672281,1781039451000,-1367.9253119,0.00019999,2]
[424672284,1781039451000,-1367.9253119,0.00019999,2]
[424672283,1781039451000,-1367.9253119,0.00019999,2]
[424672285,1781039451000,-1367.9253119,0.00019999,2]
[424672290,1781039451000,-1367.9253119,0.00019999,2]
[424672286,1781039451000,-1367.9253119,0.00019999,2]
[424672287,1781039451000,-1367.9253119,0.00019999,2]
[424672276,1781039451000,-1367.9253119,0.00019999,2]
[424672288,1781039451000,-1367.9253119,0.00019999,2]
[424672292,1781039451000,-1367.9253119,0.00019999,2]
[424672294,1781039451000,-1367.9253119,0.00019999,2]
[424672299,1781039451000,-1367.9253119,0.00019999,2]
[424672301,1781039451000,-183.77543273,0.00019999,2]
[424672293,1781039451000,-1367.9253119,0.00019999,2]
[424672297,1781039451000,-1367.9253119,0.00019999,2]
[424672300,1781039451000,-500.0,0.00019999,2]
[424672295,1781039451000,-1367.9253119,0.00019999,2]
[424672298,1781039451000,-1367.9253119,0.00019999,2]
[424672291,1781039451000,-1367.9253119,0.00019999,2]
[424672243,1781039451000,-300.0,0.00019999,2]
[424672296,1781039451000,-1367.9253119,0.00019999,2]
[424672273,1781039451000,-1367.9253119,0.00019999,2]
[424672289,1781039451000,-1367.9253119,0.00019999,2]
[424672277,1781039451000,-1367.9253119,0.00019999,2]
[424672272,1781039451000,-1367.9253119,0.00019999,2]
[424672251,1781039451000,-500.0,0.00019999,2]
[424672254,1781039451000,-1367.9253119,0.00019999,2]
[424672253,1781039451000,-1367.9253119,0.00019999,2]
[424672249,1781039451000,-500.0,0.00019999,2]
[424672256,1781039451000,-1367.9253119,0.00019999,2]
[424672258,1781039451000,-1367.9253119,0.00019999,2]
[424672252,1781039451000,-500.0,0.00019999,2]
[424672257,1781039451000,-1367.9253119,0.00019999,2]
[424672255,1781039451000,-1367.9253119,0.00019999,2]
[424672260,1781039451000,-1367.9253119,0.00019999,2]
[424672261,1781039451000,-1367.9253119,0.00019999,2]
[424672248,1781039451000,-500.0,0.00019999,2]
[424672275,1781039451000,-1367.9253119,0.00019999,2]
[424672266,1781039451000,-1367.9253119,0.00019999,2]
[424672271,1781039451000,-1367.9253119,0.00019999,2]
[424672274,1781039451000,-1367.9253119,0.00019999,2]
[424672263,1781039451000,-1367.9253119,0.00019999,2]
[424672268,1781039451000,-1367.9253119,0.00019999,2]
[424672270,1781039451000,-1367.9253119,0.00019999,2]
[424672267,1781039451000,-1367.9253119,0.00019999,2]
[424672259,1781039451000,-1367.9253119,0.00019999,2]
[424672262,1781039451000,-1367.9253119,0.00019999,2]
[424672269,1781039451000,-1367.9253119,0.00019999,2]
[424672264,1781039451000,-1367.9253119,0.00019999,2]
[424672331,1781039452000,-1351.24329591,0.00019999,2]
[424672349,1781039452000,-500.0,0.00019999,2]
[424672350,1781039452000,-500.0,0.00019999,2]
[424672339,1781039452000,-500.0,0.00019999,2]
[424672334,1781039452000,-1351.24329591,0.00019999,2]
[424672335,1781039452000,-500.0,0.00019999,2]
[424672336,1781039452000,-1351.24329591,0.00019999,2]
[424672337,1781039452000,-500.0,0.00019999,2]
[424672333,1781039452000,-1351.24329591,0.00019999,2]
[424672341,1781039452000,-1351.24329591,0.00019999,2]
[424672332,1781039452000,-1351.24329591,0.00019999,2]
[424672327,1781039452000,-1351.24329591,0.00019999,2]
[424672340,1781039452000,-1351.24329591,0.00019999,2]
[424672347,1781039452000,-500.0,0.00019999,2]
[424672338,1781039452000,-1351.24329591,0.00019999,2]
[424672345,1781039452000,-1351.24329591,0.00019999,2]
[424672344,1781039452000,-1351.24329591,0.00019999,2]
[424672346,1781039452000,-1351.24329591,0.00019999,2]
[424672343,1781039452000,-1351.24329591,0.00019999,2]
[424672348,1781039452000,-1351.24329591,0.00019999,2]
[424672352,1781039452000,-490.42552075,0.00019999,2]
[424672351,1781039452000,-500.0,0.00019999,2]
[424672355,1781039452000,-2045.92174739,0.00019999,2]
[424672362,1781039452000,-2045.92174739,0.00019999,2]
[424672353,1781039452000,-2045.92174739,0.00019999,2]
[424672342,1781039452000,-500.0,0.00019999,2]
[424672354,1781039452000,-2045.92174739,0.00019999,2]
[424672304,1781039452000,-500.0,0.00019999,2]
[424672330,1781039452000,-1351.24329591,0.00019999,2]
[424672302,1781039452000,-500.0,0.00019999,2]
[424672303,1781039452000,-322.26838904,0.00019999,2]
[424672311,1781039452000,-1351.24329591,0.00019999,2]
[424672307,1781039452000,-500.0,0.00019999,2]
[424672308,1781039452000,-500.0,0.00019999,2]
[424672312,1781039452000,-1351.24329591,0.00019999,2]
[424672306,1781039452000,-500.0,0.00019999,2]
[424672313,1781039452000,-1351.24329591,0.00019999,2]
[424672309,1781039452000,-1351.24329591,0.00019999,2]
[424672305,1781039452000,-500.0,0.00019999,2]
[424672310,1781039452000,-1351.24329591,0.00019999,2]
[424672323,1781039452000,-500.0,0.00019999,2]
[424672315,1781039452000,-500.0,0.00019999,2]
[424672324,1781039452000,-1351.24329591,0.00019999,2]
[424672325,1781039452000,-1351.24329591,0.00019999,2]
[424672316,1781039452000,-1351.24329591,0.00019999,2]
[424672314,1781039452000,-1351.24329591,0.00019999,2]
[424672322,1781039452000,-1351.24329591,0.00019999,2]
[424672317,1781039452000,-500.0,0.00019999,2]
[424672318,1781039452000,-1351.24329591,0.00019999,2]
[424672319,1781039452000,-1351.24329591,0.00019999,2]
[424672321,1781039452000,-1351.24329591,0.00019999,2]
[424672320,1781039452000,-500.0,0.00019999,2]